fUST/lending_fUST_20241215
["ID","MTS","AMOUNT","RATE_DAILY","PERIOD"]
[345447748,1734263448055,-500.0,0.00028219,7]
[345447750,1734263448065,-500.0,0.00028219,7]
[345447752,1734263448074,-500.0,0.00028219,7]
[345447753,1734263448084,-500.0,0.00028219,7]
[345447755,1734263448094,-500.0,0.00028219,7]
[345447758,1734263448104,-247.17495148,0.00028219,7]
[345447760,1734263448114,-500.0,0.00028219,7]
[345447761,1734263448123,-500.0,0.00028219,7]
[345447764,1734263448133,-500.0,0.00028219,7]
[345447766,1734263448143,-488.84996,0.00028219,7]
[345447768,1734263448152,-500.0,0.00028219,7]
[345447770,1734263448162,-500.0,0.00028219,7]
[345447772,1734263448171,-500.0,0.00028219,7]
[345447774,1734263448180,-500.0,0.00028219,7]
[345447776,1734263448190,-1314.33,0.00028219,7]
[345447777,1734263448198,-500.0,0.00028219,7]
[345447780,1734263448208,-500.0,0.00028219,7]
[345447781,1734263448227,-254.14968914,0.00028219,7]
[345447783,1734263448236,-500.0,0.00028219,7]
[345447785,1734263448246,-500.0,0.00028219,7]
[345447787,1734263448255,-500.0,0.00028219,7]
[345447789,1734263448267,-500.0,0.00028219,7]
[345447791,1734263448276,-500.0,0.00028219,7]
[345447793,1734263448286,-500.0,0.00028219,7]
[345447795,1734263448295,-500.0,0.00028219,7]
[345447797,1734263448308,-500.0,0.00028219,7]
[345447803,1734263448380,-500.0,0.00028219,7]
[345447804,1734263448400,-513.43742654,0.00028219,7]
[345447806,1734263448410,-500.0,0.00028219,7]
[345447808,1734263448420,-500.0,0.00028219,7]
[345447810,1734263448430,-500.0,0.00028219,7]
[345447812,1734263448439,-500.0,0.00028219,7]
[345447814,1734263448450,-551.45619552,0.00028219,7]
[345447816,1734263448459,-500.0,0.00028219,7]
[345447818,1734263448469,-735.42,0.00028219,7]
[345447820,1734263448479,-500.0,0.00028219,7]
[345447822,1734263448490,-500.0,0.00028219,7]
[345447824,1734263448500,-500.0,0.00028219,7]
[345447826,1734263448509,-500.0,0.00028219,7]
[345447828,1734263448522,-500.0,0.00028219,7]
[345447830,1734263448532,-450.70848131,0.00028219,7]
[345447832,1734263448542,-500.0,0.00028219,7]
[345447834,1734263448552,-500.0,0.00028219,7]
[345447836,1734263448561,-500.0,0.00028219,7]
[345447838,1734263448571,-502.80374805,0.00028219,7]
[345447840,1734263448581,-500.0,0.00028219,7]
[345447842,1734263448591,-500.0,0.00028219,7]
[345447844,1734263448600,-500.0,0.00028219,7]
[345447846,1734263448610,-500.0,0.00028219,7]
[345447848,1734263448619,-500.0,0.00028219,7]
[345447850,1734263448629,-1052.0,0.00028219,7]
[345447852,1734263448638,-500.0,0.00028219,7]
[345447854,1734263448648,-500.0,0.00028219,7]
[345447856,1734263448658,-500.0,0.00028219,7]
[345447858,1734263448668,-510.71,0.00028219,7]
[345447860,1734263448677,-500.0,0.00028219,7]
[345447862,1734263448687,-500.0,0.00028219,7]
[345447864,1734263448698,-500.0,0.00028219,7]
[345447866,1734263448708,-500.0,0.00028219,7]
[345447868,1734263448717,-500.0,0.00028219,7]
[345447871,1734263448727,-597.7,0.00028219,7]
[345447873,1734263448737,-165.22145526,0.00028219,7]
[345447875,1734263448747,-500.0,0.00028219,7]
[345447877,1734263448757,-500.0,0.00028219,7]
[345447879,1734263448766,-529.51682103,0.00028219,7]
[345447881,1734263448776,-500.0,0.00028219,7]
[345447883,1734263448785,-500.0,0.00028219,7]
[345447885,1734263448795,-500.0,0.00028219,7]
[345447887,1734263448804,-500.0,0.00028219,7]
[345447889,1734263448814,-500.0,0.00028219,7]
[345447891,1734263448823,-500.0,0.00028219,7]
[345447893,1734263448832,-283.63131913,0.00028219,7]
[345447895,1734263448844,-500.0,0.00028219,7]
[345447896,1734263448854,-500.0,0.00028219,7]
[345447899,1734263448864,-500.0,0.00028219,7]
[345447901,1734263448874,-500.0,0.00028219,7]
[345447903,1734263448884,-500.0,0.00028219,7]
[345447905,1734263448894,-457.62354678,0.00028219,7]
[345447907,1734263448903,-2577.59,0.00028219,2]
[345447909,1734263448913,-500.0,0.00028219,7]
[345447911,1734263448922,-503.27311249,0.00028219,7]
[345447913,1734263448932,-954.09,0.00028219,7]
[345447915,1734263448941,-3463.25,0.00028219,7]
[345447917,1734263448950,-500.0,0.00028219,7]
[345447919,1734263448959,-500.0,0.00028219,7]
[345447921,1734263448969,-527.61224722,0.00028272,2]
[345447923,1734263448978,-444.26127436,0.00028324,2]
[345447925,1734263448988,-308.77883602,0.00028329,2]
[345447927,1734263448997,-152.96,0.000284,31]
[345447929,1734263449006,-152.96,0.000284,31]
[345447931,1734263449016,-152.96,0.000284,31]
[345447932,1734263449025,-152.96,0.000284,31]
[345447934,1734263449035,-152.96,0.000284,31]
[345447937,1734263449045,-152.96,0.000284,31]
[345447938,1734263449055,-152.96,0.000284,31]
[345447941,1734263449065,-151.0,0.000284,18]
[345447943,1734263449074,-384.562625,0.00028411,30]
[345447945,1734263449084,-153.1150543,0.00028411,30]
[345447947,1734263449093,-153.0,0.00028411,30]
[345447949,1734263449103,-153.1150543,0.00028411,30]
[345447951,1734263449113,-153.1150543,0.00028411,30]
[345447953,1734263449123,-308.77883602,0.00028466,2]
[345447955,1734263449132,-500.0,0.00028493,7]
[345447957,1734263449141,-500.0,0.00028493,7]
[345447959,1734263449151,-500.0,0.00028493,7]
[345447961,1734263449160,-500.0,0.00028493,7]
[345447963,1734263449170,-359.09353487,0.00028493,7]
[345447965,1734263449179,-500.0,0.00028493,7]
[345447967,1734263449188,-500.0,0.00028493,7]
[345447969,1734263449198,-500.0,0.00028493,7]
[345447971,1734263449207,-500.0,0.00028493,7]
[345447973,1734263449218,-500.0,0.00028493,7]
[345447975,1734263449227,-500.0,0.00028493,7]
[345447977,1734263449237,-500.0,0.00028493,7]
[345447979,1734263449246,-514.95396094,0.00028493,7]
[345447981,1734263449255,-504.99282886,0.00028493,7]
[345447983,1734263449265,-500.0,0.00028493,7]
[345447985,1734263449274,-500.0,0.00028493,7]
[345447987,1734263449283,-500.0,0.00028493,7]
[345447989,1734263449292,-3001.55,0.00028493,2]
[345447990,1734263449302,-246.66712651,0.00028493,7]
[345447992,1734263449311,-638.60016331,0.00028493,7]
[345447995,1734263449321,-500.0,0.00028493,7]
[345447996,1734263449331,-499.88955285,0.00028493,7]
[345447999,1734263449341,-500.0,0.00028493,7]
[345448001,1734263449350,-500.0,0.00028493,7]
[345448003,1734263449360,-500.0,0.00028493,7]
[345448005,1734263449369,-500.0,0.00028493,7]
[345448007,1734263449378,-522.88160751,0.00028493,7]
[345448009,1734263449388,-500.0,0.00028493,7]
[345448011,1734263449397,-500.0,0.00028493,7]
[345448013,1734263449406,-638.81854226,0.00028493,7]
[345448015,1734263449415,-500.0,0.00028493,7]
[345448017,1734263449426,-500.0,0.00028493,7]
[345448018,1734263449436,-500.0,0.00028493,7]
[345448020,1734263449446,-502.87951586,0.00028493,7]
[345448022,1734263449455,-500.0,0.00028493,7]
[345448024,1734263449464,-500.0,0.00028493,7]
[345448027,1734263449474,-500.0,0.00028493,7]
[345448028,1734263449483,-500.0,0.00028493,7]
[345448030,1734263449493,-500.0,0.00028493,7]
[345448032,1734263449503,-500.06626625,0.00028493,7]
[345448034,1734263449512,-500.0,0.00028493,7]
[345448036,1734263449524,-500.0,0.00028493,7]
[345448038,1734263449534,-500.0,0.00028493,7]
[345448040,1734263449543,-500.0,0.00028493,7]
[345448042,1734263449553,-500.0,0.00028493,7]
[345448044,1734263449562,-1314.33,0.00028493,7]
[345448046,1734263449572,-500.0,0.00028493,7]
[345448048,1734263449582,-500.0,0.00028493,7]
[345448050,1734263449591,-500.0,0.00028493,7]
[345448052,1734263449600,-500.0,0.00028493,7]
[345448054,1734263449610,-500.0,0.00028493,7]
[345448057,1734263449621,-500.0,0.00028493,7]
[345448058,1734263449631,-500.0,0.00028493,7]
[345448061,1734263449642,-335.25008717,0.00028493,7]
[345448063,1734263449651,-500.0,0.00028493,7]
[345448065,1734263449660,-500.0,0.00028493,7]
[345448067,1734263449671,-735.42,0.00028493,7]
[345448069,1734263449680,-464.71061844,0.00028493,7]
[345448070,1734263449691,-153.96760743,0.00028493,7]
[345448073,1734263449700,-500.0,0.00028493,7]
[345448074,1734263449710,-500.0,0.00028493,7]
[345448076,1734263449720,-500.0,0.00028493,7]
[345448078,1734263449729,-500.0,0.00028493,7]
[345448080,1734263449738,-502.72862085,0.00028493,7]
[345448082,1734263449748,-500.0,0.00028493,7]
[345448084,1734263449758,-500.0,0.00028493,7]
[345448086,1734263449767,-505.25555965,0.00028493,7]
[345448089,1734263449777,-500.0,0.00028493,7]
[345448091,1734263449786,-1052.0,0.00028493,7]
[345448093,1734263449795,-500.0,0.00028493,7]
[345448094,1734263449806,-500.0,0.00028493,7]
[345448097,1734263449815,-538.61,0.00028493,7]
[345448099,1734263449825,-510.71,0.00028493,7]
[345448101,1734263449836,-500.0,0.00028493,7]
[345448103,1734263449845,-500.0,0.00028493,7]
[345448105,1734263449854,-293.20367228,0.00028493,7]
[345448107,1734263449864,-500.0,0.00028493,7]
[345448109,1734263449874,-379.05388618,0.00028493,7]
[345448111,1734263449883,-597.7,0.00028493,7]
[345448113,1734263449894,-553.52100534,0.00028493,7]
[345448115,1734263449903,-500.0,0.00028493,7]
[345448117,1734263449912,-509.5,0.00028493,7]
[345448119,1734263449921,-500.0,0.00028493,7]
[345448121,1734263449930,-500.0,0.00028493,7]
[345448123,1734263449940,-578.60102779,0.00028493,7]
[345448125,1734263449950,-500.0,0.00028493,7]
[345448127,1734263449959,-500.0,0.00028493,7]
[345448130,1734263449979,-500.0,0.00028493,7]
[345448132,1734263449990,-505.27041349,0.00028493,7]
[345448134,1734263450000,-500.0,0.00028493,7]
[345448137,1734263450011,-500.0,0.00028493,7]
[345448139,1734263450021,-500.0,0.00028493,7]
[345448141,1734263450031,-2577.59,0.00028493,2]
[345448143,1734263450041,-500.0,0.00028493,7]
[345448145,1734263450050,-954.09,0.00028493,7]
[345448147,1734263450060,-3463.25,0.00028493,7]
[345448161,1734263450178,-500.0,0.00028493,7]
[345448163,1734263450188,-642.59090459,0.00028498,2]
[345448165,1734263450198,-162.88832014,0.00028498,2]
[345448167,1734263450207,-38703.30205897,0.00028499,2]
[345448170,1734263450223,-33937.74995523,0.00028499,2]
[345448172,1734263450235,-360.98,0.00028499,2]
[345448188,1734263450383,-1035.93478882,0.00028499,2]
[345448190,1734263450395,-7421.91496536,0.00028499,2]
[345448621,1734263467951,500.0,0.000255,120]
[345448622,1734263480497,479.03,0.00025,30]
[345448623,1734263488435,501.0,0.000255,120]
[345448624,1734263509709,466.0,0.000255,120]
[345448625,1734263524025,165.486465,0.00013973,2]
[345448629,1734264155047,500.0,0.00024524,2]
[345448630,1734264176194,500.0,0.00023298,2]
[345448631,1734264197333,500.0,0.00022133,2]
[345448632,1734264218497,500.0,0.00021026,2]
[345448633,1734264239619,500.0,0.00020548,2]
[345448634,1734264246743,160.0,0.00022,2]
[345448635,1734264260844,496.65389461,0.00020548,2]
[345448636,1734264532854,164.495162,0.00013973,2]
[345448663,1734264632157,-266.7611281,0.000251,60]
[345448694,1734264637922,-254.2388719,0.000251,60]
[345448697,1734264637933,-500.0,0.0002575,2]
[345448699,1734264637942,-500.0,0.00027038,2]
[345448701,1734264637952,-313.392,0.0002707,2]
[345448703,1734264637962,-1928.48680592,0.00027297,2]
[345448704,1734264637972,-624.20020305,0.0002736,2]
[345448705,1734264637981,-300.0,0.00027372,2]
[345448706,1734264637991,-300.0,0.00027372,2]
[345448707,1734264637999,-500.744659,0.00027373,2]
[345448708,1734264638013,-500.27921022,0.00027373,2]
[345448709,1734264638022,-500.0,0.00027373,2]
[345448710,1734264638031,-273.0346183,0.00027373,2]
[345448711,1734264638040,-500.0,0.00027373,2]
[345448712,1734264638049,-500.61052983,0.00027373,2]
[345448713,1734264638059,-500.66116952,0.00027373,2]
[345448714,1734264638068,-500.0,0.00027373,2]
[345448715,1734264638077,-500.69964911,0.00027373,2]
[345448716,1734264638086,-500.0,0.00027373,2]
[345448717,1734264638096,-606.24558916,0.00027373,2]
[345448718,1734264638105,-172.93848197,0.00027373,2]
[345448719,1734264638115,-306.39661185,0.00027373,2]
[345448720,1734264638126,-193.60338815,0.00027373,2]
[345448721,1734264638135,-500.0,0.00027373,2]
[345448722,1734264638145,-500.0,0.00027397,7]
[345448723,1734264638154,-500.0,0.00027397,7]
[345448724,1734264638164,-500.0,0.00027397,7]
[345448726,1734264638173,-502.73551472,0.00027397,7]
[345448728,1734264638183,-500.0,0.00027397,7]
[345448730,1734264638193,-500.0,0.00027397,7]
[345448732,1734264638202,-500.0,0.00027397,7]
[345448734,1734264638211,-500.0,0.00027397,7]
[345448736,1734264638221,-500.0,0.00027397,7]
[345448737,1734264638230,-500.0,0.00027397,7]
[345448739,1734264638239,-500.0,0.00027397,7]
[345448740,1734264638248,-500.0,0.00027397,7]
[345448741,1734264638260,-500.0,0.00027397,7]
[345448742,1734264638268,-500.0,0.00027397,7]
[345448743,1734264638277,-500.0,0.00027397,7]
[345448744,1734264638286,-500.0,0.00027397,7]
[345448745,1734264638295,-500.0,0.00027397,7]
[345448746,1734264638304,-500.0,0.00027397,7]
[345448747,1734264638314,-500.0,0.00027397,2]
[345448748,1734264638325,-500.0,0.00027397,7]
[345448749,1734264638336,-500.0,0.00027397,7]
[345448750,1734264638345,-500.0,0.00027397,7]
[345448751,1734264638354,-500.0,0.00027397,7]
[345448752,1734264638364,-500.0,0.00027397,7]
[345448753,1734264638374,-500.0,0.00027397,7]
[345448754,1734264638383,-500.0,0.00027397,7]
[345448755,1734264638392,-500.0,0.00027397,7]
[345448756,1734264638402,-500.0,0.00027397,7]
[345448757,1734264638411,-500.0,0.00027397,7]
[345448758,1734264638419,-500.0,0.00027397,7]
[345448759,1734264638428,-500.0,0.00027397,7]
[345448760,1734264638437,-500.0,0.00027397,7]
[345448762,1734264638446,-500.0,0.00027397,7]
[345448764,1734264638456,-500.0,0.00027397,7]
[345448766,1734264638466,-500.0,0.00027397,7]
[345448768,1734264638475,-500.0,0.00027397,7]
[345448770,1734264638484,-500.0,0.00027397,7]
[345448772,1734264638493,-500.0,0.00027397,7]
[345448774,1734264638502,-500.0,0.00027397,7]
[345448776,1734264638513,-500.0,0.00027397,7]
[345448778,1734264638523,-500.0,0.00027397,7]
[345448780,1734264638533,-500.0,0.00027397,7]
[345448782,1734264638542,-500.0,0.00027397,7]
[345448784,1734264638551,-500.0,0.00027397,7]
[345448786,1734264638560,-500.0,0.00027397,7]
[345448788,1734264638569,-500.0,0.00027397,7]
[345448790,1734264638578,-500.0,0.00027397,7]
[345448792,1734264638588,-323.35045693,0.00027397,7]
[345449400,1734264645857,-176.64954307,0.00027397,7]
[345449402,1734264645867,-383.17580561,0.00027397,7]
[345449413,1734264645963,-116.82419439,0.00027397,7]
[345449415,1734264645973,-500.0,0.00027397,7]
[345449417,1734264645982,-500.0,0.00027397,7]
[345449419,1734264645992,-500.0,0.00027397,7]
[345449421,1734264646001,-500.0,0.00027397,7]
[345449423,1734264646010,-500.0,0.00027397,7]
[345449425,1734264646021,-466.01786884,0.00027397,7]
[345451095,1734265418225,163.733171,0.00013973,2]
[345451096,1734265653182,47515.30831207,0.00025,7]
[345451099,1734265719625,146321.81308061,0.00025,2]
[345451113,1734265832092,-1313.24963175,0.000249,2]
[345451114,1734265832102,-300.0,0.00024999,2]
[345451115,1734265832114,-300.0,0.00024999,2]
[345451116,1734265832124,-381.88017332,0.00025,2]
[345451117,1734265832133,-24831.7101346,0.00025,2]
[345451118,1734265832145,-1553.337,0.00025,2]
[345451159,1734265838154,-602.08617986,0.000249,2]
[345451160,1734265838164,-159273.47512007,0.00025,2]
[345451161,1734265838173,-10364.0,0.00025,2]
[345451162,1734265838182,-1313.24963175,0.00025624,2]
[345451163,1734265838191,-1608.7591106,0.00025644,2]
[345451164,1734265838200,-4186.1813476,0.00026273,2]
[345451165,1734265838209,-9609.25551229,0.00026306,2]
[345451166,1734265838219,-1313.24963175,0.00026348,2]
[345451167,1734265838228,-152.0,0.00026452,2]
[345451169,1734265838237,-483.16607858,0.00026473,2]
[345451171,1734265838247,-500.0,0.00026473,2]
[345451172,1734265838256,-500.0,0.00026499,2]
[345451173,1734265838265,-500.0,0.00026499,2]
[345451174,1734265838275,-500.0,0.00026499,2]
[345451175,1734265838285,-500.0,0.00026499,2]
[345451176,1734265838296,-500.0,0.00026499,2]
[345451177,1734265838305,-500.0,0.00026499,2]
[345451178,1734265838315,-500.0,0.00026499,2]
[345451179,1734265838324,-500.0,0.00026499,2]
[345451180,1734265838333,-500.0,0.00026499,2]
[345451181,1734265838342,-331.5077871,0.00026499,2]
[345451182,1734265838352,-500.0,0.00026499,2]
[345451183,1734265838368,-500.0,0.00026499,2]
[345451184,1734265838378,-500.0,0.00026499,2]
[345451185,1734265838387,-500.0,0.00026499,2]
[345451186,1734265838396,-500.0,0.00026499,2]
[345451187,1734265838406,-500.0,0.00026499,2]
[345451188,1734265838415,-500.0,0.00026499,2]
[345451189,1734265838424,-500.0,0.00026499,2]
[345451190,1734265838434,-500.0,0.00026499,2]
[345451191,1734265838551,-500.0,0.00026499,2]
[345451192,1734265838563,-500.0,0.00026499,2]
[345451193,1734265838573,-639.83060021,0.00026499,2]
[345451194,1734265838583,-500.0,0.00026499,2]
[345451195,1734265838593,-442.57084159,0.00026499,2]
[345451196,1734265838603,-500.0,0.00026499,2]
[345451197,1734265838620,-500.0,0.00026499,2]
[345451198,1734265838629,-500.0,0.00026499,2]
[345451199,1734265838638,-500.0,0.00026499,2]
[345451200,1734265838647,-500.0,0.00026499,2]
[345451201,1734265838656,-500.0,0.00026499,2]
[345451202,1734265838665,-500.0,0.00026499,2]
[345451203,1734265838675,-500.0,0.00026499,2]
[345451204,1734265838684,-500.0,0.00026499,2]
[345451205,1734265838693,-588.11788006,0.00026499,2]
[345451206,1734265838702,-458.88418477,0.00026499,2]
[345451207,1734265838712,-500.0,0.00026499,2]
[345451208,1734265838721,-500.0,0.00026499,2]
[345451209,1734265838731,-500.0,0.00026499,2]
[345451210,1734265838740,-500.0,0.00026499,2]
[345451211,1734265838750,-500.0,0.00026499,2]
[345451212,1734265838759,-245.64156384,0.00026499,2]
[345451213,1734265838768,-500.0,0.00026499,2]
[345451214,1734265838778,-500.0,0.00026499,2]
[345451215,1734265838787,-500.0,0.00026499,2]
[345451216,1734265838797,-57613.05602125,0.000265,2]
[345451217,1734265838807,-183107.08750987,0.000265,2]
[345451218,1734265838819,-9609.25551229,0.0002679,2]
[345451219,1734265838829,-2367.24040608,0.00027,2]
[345451220,1734265838838,-9609.25551229,0.00027023,2]
[345451221,1734265838847,-193.0,0.00027047,2]
[345451222,1734265838858,-315.905,0.0002707,2]
[345451223,1734265838874,-420.0,0.00027082,2]
[345451224,1734265838887,-9609.2555123,0.00027255,2]
[345451225,1734265838900,-2628.39175936,0.00027297,2]
[345451226,1734265838910,-648.78223169,0.0002736,2]
[345451227,1734265838919,-501.63733496,0.00027373,2]
[345451228,1734265838929,-500.0,0.00027373,2]
[345451229,1734265838940,-498.73878151,0.00027373,2]
[345451230,1734265838949,-500.0,0.00027373,2]
[345451231,1734265838959,-500.0,0.00027397,7]
[345451232,1734265838969,-500.0,0.00027397,7]
[345451233,1734265838979,-500.0,0.00027397,7]
[345451234,1734265838988,-500.0,0.00027397,7]
[345451235,1734265838998,-299.20160247,0.00027397,7]
[345451236,1734265839008,-500.0,0.00027397,7]
[345451237,1734265839017,-500.0,0.00027397,7]
[345451238,1734265839026,-502.93439071,0.00027397,7]
[345451239,1734265839036,-500.0,0.00027397,7]
[345451240,1734265839046,-500.0,0.00027397,7]
[345451241,1734265839055,-500.0,0.00027397,7]
[345451242,1734265839066,-500.0,0.00027397,7]
[345451243,1734265839075,-500.0,0.00027397,7]
[345451244,1734265839085,-501.34905779,0.00027397,7]
[345451245,1734265839095,-456.25,0.00027397,7]
[345451246,1734265839104,-500.0,0.00027397,7]
[345451247,1734265839113,-500.0,0.00027397,7]
[345451248,1734265839123,-500.0,0.00027397,7]
[345451249,1734265839132,-500.0,0.00027397,7]
[345451250,1734265839142,-500.0,0.00027397,7]
[345451251,1734265839151,-500.0,0.00027397,7]
[345451252,1734265839160,-500.0,0.00027397,7]
[345451253,1734265839170,-500.0,0.00027397,7]
[345451254,1734265839179,-500.0,0.00027397,7]
[345451255,1734265839189,-500.0,0.00027397,7]
[345451256,1734265839199,-500.0,0.00027397,7]
[345451257,1734265839208,-500.0,0.00027397,7]
[345451258,1734265839217,-196.4,0.00027397,7]
[345451259,1734265839227,-500.0,0.00027397,7]
[345451260,1734265839236,-500.0,0.00027397,7]
[345451261,1734265839245,-500.0,0.00027397,7]
[345451262,1734265839256,-500.0,0.00027397,7]
[345451263,1734265839265,-500.0,0.00027397,7]
[345451264,1734265839275,-500.0,0.00027397,7]
[345451265,1734265839284,-500.0,0.00027397,7]
[345451266,1734265839294,-500.0,0.00027397,7]
[345451267,1734265839303,-2040.6,0.00027397,2]
[345451268,1734265839312,-502.92422673,0.00027397,7]
[345451269,1734265839322,-500.0,0.00027397,7]
[345451270,1734265839331,-500.0,0.00027397,7]
[345451271,1734265839340,-500.0,0.00027397,7]
[345451272,1734265839350,-500.0,0.00027397,7]
[345451273,1734265839365,-500.0,0.00027397,7]
[345451274,1734265839382,-500.0,0.00027397,7]
[345451275,1734265839391,-500.0,0.00027397,7]
[345451276,1734265839401,-502.14675135,0.00027397,7]
[345451277,1734265839411,-577.99298676,0.00027397,7]
[345451278,1734265839420,-223.37091862,0.00027397,7]
[345451279,1734265839430,-500.0,0.00027397,7]
[345451280,1734265839440,-500.0,0.00027397,7]
[345451281,1734265839449,-500.0,0.00027397,7]
[345451282,1734265839458,-500.0,0.00027397,7]
[345451283,1734265839468,-500.99416879,0.00027397,7]
[345451284,1734265839477,-500.0,0.00027397,7]
[345451285,1734265839486,-500.0,0.00027397,7]
[345451286,1734265839496,-500.0,0.00027397,7]
[345451287,1734265839505,-500.0,0.00027397,7]
[345451288,1734265839515,-500.96780177,0.00027397,2]
[345451289,1734265839524,-421.47842394,0.00027397,7]
[345451290,1734265839534,-500.0,0.00027397,7]
[345451291,1734265839543,-500.0,0.00027397,7]
[345451292,1734265839553,-500.0,0.00027397,7]
[345451293,1734265839562,-500.0,0.00027397,7]
[345451294,1734265839572,-500.0,0.00027397,7]
[345451295,1734265839583,-500.0,0.00027397,7]
[345451296,1734265839593,-325.29663877,0.00027397,7]
[345451297,1734265839602,-500.0,0.00027397,7]
[345451298,1734265839612,-500.0,0.00027397,7]
[345451299,1734265839621,-500.0,0.00027397,7]
[345451300,1734265839631,-500.0,0.00027397,7]
[345451301,1734265839641,-500.0,0.00027397,7]
[345451302,1734265839650,-509.71579451,0.00027397,7]
[345451303,1734265839659,-500.0,0.00027397,7]
[345451304,1734265839669,-500.0,0.00027397,7]
[345451305,1734265839679,-500.0,0.00027397,7]
[345451306,1734265839688,-281.9860327,0.00027397,7]
[345451307,1734265839698,-500.0,0.00027397,7]
[345451308,1734265839708,-500.0,0.00027397,7]
[345451310,1734265839718,-500.0,0.00027397,7]
[345451311,1734265839728,-500.0,0.00027397,7]
[345451312,1734265839737,-500.0,0.00027397,7]
[345451313,1734265839746,-182.67592012,0.00027397,7]
[345451314,1734265839755,-500.0,0.00027397,7]
[345451315,1734265839765,-500.0,0.00027397,7]
[345451316,1734265839774,-500.0,0.00027397,7]
[345451317,1734265839783,-517.25405236,0.00027397,7]
[345451318,1734265839792,-500.0,0.00027397,7]
[345451319,1734265839802,-500.0,0.00027397,7]
[345451320,1734265839810,-529.19,0.00027397,7]
[345451321,1734265839820,-490.33286877,0.00027397,7]
[345451322,1734265839829,-500.0,0.00027397,7]
[345451323,1734265839838,-500.0,0.00027397,7]
[345451324,1734265839847,-500.0,0.00027397,7]
[345451325,1734265839856,-500.0,0.00027397,7]
[345451326,1734265839876,-505.32352443,0.00027397,7]
[345451327,1734265839887,-500.0,0.00027397,7]
[345451328,1734265839900,-500.0,0.00027397,7]
[345451329,1734265839909,-403.38525395,0.00027397,7]
[345451330,1734265839918,-500.0,0.00027397,7]
[345451331,1734265839927,-500.0,0.00027397,7]
[345451332,1734265839936,-500.0,0.00027397,7]
[345451333,1734265839947,-500.0,0.00027397,7]
[345451334,1734265839956,-500.0,0.00027397,7]
[345451335,1734265839965,-500.0,0.00027397,7]
[345451336,1734265839975,-500.0,0.00027397,7]
[345451337,1734265839985,-504.08667959,0.00027397,7]
[345451338,1734265839994,-508.17843929,0.00027397,7]
[345451339,1734265840004,-500.0,0.00027397,7]
[345451340,1734265840014,-500.0,0.00027397,7]
[345451341,1734265840023,-500.0,0.00027397,7]
[345451342,1734265840032,-503.48190991,0.00027397,7]
[345451343,1734265840042,-500.0,0.00027397,7]
[345451344,1734265840051,-2534.2,0.00027397,2]
[345451345,1734265840061,-500.0,0.00027397,7]
[345451346,1734265840070,-500.0,0.00027397,7]
[345451347,1734265840079,-501.31102016,0.00027397,7]
[345451348,1734265840089,-500.0,0.00027397,7]
[345451349,1734265840098,-500.0,0.00027397,7]
[345451350,1734265840108,-500.0,0.00027397,7]
[345451351,1734265840117,-187.82289108,0.00027397,7]
[345451352,1734265840127,-500.0,0.00027397,7]